Workbook

Sheet MOU
A2: Investigator Name: | E2: Boston University | G2: VA | I2: Other Institution | K2: TOTAL
G3: Bedford | I3: Other Institution Name
A4: Title/Rank:
A5: Department: | E5: Hrs/wk | F5: % | G5: Hrs/wk | H5: % | I5: Hrs/wk | J5: % | K5: Hrs/wk | L5: %
A6: Total Appointed Hours/week | K6: =SUM(E6:J6) -> 0
A7: Research:
A8: BU SAP Grant # | F8: =IF(E17=0,"",E8/E17) ->  | H8: =IF(G16=0,"",G8/G16) ->  | K8: =SUM(E8, G8, I8) -> 0 | L8: =IF(K17=0,"",K8/K17) -> 
F9: =IF(E17=0,"",E9/E17) ->  | H9: =IF(G17=0,"",G9/G17) ->  | J9: =IF(I17=0,"",I9/I17) ->  | K9: =SUM(E9, G9, I9) -> 0 | L9: =IF(K17=0,"",K9/K17) -> 
F10: =IF(E17=0,"",E10/E17) ->  | H10: =IF(G17=0,"",G10/G17) ->  | J10: =IF(I17=0,"",I10/I17) ->  | K10: =SUM(E10, G10, I10) -> 0 | L10: =IF(K17=0,"",K10/K17) -> 
A11: VA Merit # | F11: =IF(E17=0,"",E11/E17) ->  | H11: =IF(G17=0,"",G11/G17) ->  | J11: =IF(I17=0,"",I11/I17) ->  | K11: 0 | L11: =IF(K17=0,"",K11/K17) -> 
F12: =IF(E17=0,"",E12/E17) ->  | H12: =IF(G17=0,"",G12/G17) ->  | J12: =IF(I17=0,"",I12/I17) ->  | K12: 0 | L12: =IF(K17=0,"",K12/K17) -> 
F13: =IF(E17=0,"",E13/E17) ->  | H13: =IF(G17=0,"",G13/G17) ->  | J13: =IF(I17=0,"",I13/I17) ->  | K13: 0 | L13: =IF(K17=0,"",K13/K17) -> 
A14: Teaching | F14: =IF(E17=0,"",E14/E17) ->  | H14: =IF(G17=0,"",G14/G17) ->  | J14: =IF(I17=0,"",I14/I17) ->  | K14: 0 | L14: =IF(K17=0,"",K14/K17) -> 
A15: Clinical, Administration | F15: =IF(E17=0,"",E15/E17) ->  | H15: =IF(G17=0,"",G15/G17) ->  | J15: =IF(I17=0,"",I15/I17) ->  | K15: 0 | L15: =IF(K17=0,"",K15/K17) -> 
A16: Total Institutional Hours | E16: =SUM(E8:E15) -> 0 | F16: 0 | G16: 0 | H16: 0 | I16: 0 | J16: 0 | K16: 0 | L16: 0
A17: Total Appointed Time | E17: =SUM(E7:E15) -> 0 | F17: =IF($K$17=0, 0%, E17/$K$17) -> 0 | G17: =SUM(G7:G15) -> 0 | H17: =IF($K$17=0, 0%, G17/$K$17) -> 0 | I17: =SUM(I7:I15) -> 0 | J17: =IF($K$17=0, 0%, I17/$K$17) -> 0 | K17: 0 | L17: =SUM(L7:L15) -> 0
A27: APPROVALS:
A55: All applicable Institutional Signatures must be completed before submission to BU Sponsored Programs

Sheet Help & Guidance
A2: Investigator Name: | E2: Boston University | G2: VA | I2: Other Institution | K2: TOTAL
G3: VA Location | I3: Other Institution Name
A4: Title/Rank:
A5: Department: | E5: Hrs/wk | F5: % | G5: Hrs/wk | H5: % | I5: Hrs/wk | J5: % | K5: Hrs/wk | L5: %
A6: Total Appointed Hours/week | K6: =SUM(E6:J6) -> 0
A7: Research:
A8: BU SAP Grant # | F8: =IF(E17=0,"",E8/E17) ->  | K8: =SUM(E8, G8, I8) -> 0 | L8: =IF(K17=0,"",K8/K17) -> 
A9: BU SAP Grant # | F9: =IF(E17=0,"",E9/E17) ->  | H9: =IF(G17=0,"",G9/G17) ->  | J9: =IF(I17=0,"",I9/I17) ->  | K9: =SUM(E9, G9, I9) -> 0 | L9: =IF(K17=0,"",K9/K17) -> 
A10: BU SAP Grant # | F10: =IF(E17=0,"",E10/E17) ->  | H10: =IF(G17=0,"",G10/G17) ->  | J10: =IF(I17=0,"",I10/I17) ->  | K10: =SUM(E10, G10, I10) -> 0 | L10: =IF(K17=0,"",K10/K17) -> 
A11: BU SAP Grant # | F11: =IF(E17=0,"",E11/E17) ->  | H11: =IF(G17=0,"",G11/G17) ->  | J11: =IF(I17=0,"",I11/I17) ->  | K11: 0 | L11: =IF(K17=0,"",K11/K17) -> 
A12: VA Merit # | F12: =IF(E17=0,"",E12/E17) ->  | H12: =IF(G17=0,"",G12/G17) ->  | J12: =IF(I17=0,"",I12/I17) ->  | K12: 0 | L12: =IF(K17=0,"",K12/K17) -> 
A13: VA Merit # | F13: =IF(E17=0,"",E13/E17) ->  | H13: =IF(G17=0,"",G13/G17) ->  | J13: =IF(I17=0,"",I13/I17) ->  | K13: 0 | L13: =IF(K17=0,"",K13/K17) -> 
A14: Teaching | F14: =IF(E17=0,"",E14/E17) ->  | H14: =IF(G17=0,"",G14/G17) ->  | J14: =IF(I17=0,"",I14/I17) ->  | K14: 0 | L14: =IF(K17=0,"",K14/K17) -> 
A15: Clinical, Administration | F15: =IF(E17=0,"",E15/E17) ->  | H15: =IF(G17=0,"",G15/G17) ->  | J15: =IF(I17=0,"",I15/I17) ->  | K15: 0 | L15: =IF(K17=0,"",K15/K17) -> 
A16: Total Institutional Hours | E16: =SUM(E8:E15) -> 0 | F16: 0 | G16: 0 | H16: 0 | I16: 0 | J16: 0 | K16: 0 | L16: 0
A17: Total Appointed Time | E17: =SUM(E7:E15) -> 0 | F17: =IF($K$17=0, 0%, E17/$K$17) -> 0 | G17: =SUM(G7:G15) -> 0 | H17: =IF($K$17=0, 0%, G17/$K$17) -> 0 | I17: =SUM(I7:I15) -> 0 | J17: =IF($K$17=0, 0%, I17/$K$17) -> 0 | K17: 0 | L17: =SUM(L7:L15) -> 0

Sheet MOU sample
A2: Investigator Name: | C2: Penny Lane | E2: Boston University | G2: VA | I2: Other Institution | K2: TOTAL
G3: Boston | I3: BVARI
A4: Title/Rank: | E4: Assistant Professor | G4: Physician | I4: Physician
A5: Department: | C5: School of Medicine - Infectious Diseases | E5: Hrs/wk | F5: % | G5: Hrs/wk | H5: % | I5: Hrs/wk | J5: % | K5: Hrs/wk | L5: %
A6: Total Appointed Hours/week | E6: 20 | G6: 32 | I6: 8 | K6: =SUM(E6:J6) -> 60
A7: Research:
A8: BU SAP Grant # 55200001 | E8: 5 | F8: =IF(E17=0,"",E8/E17) -> 0.25 | K8: =SUM(E8, G8, I8) -> 5 | L8: =IF(K17=0,"",K8/K17) -> 0.08333333333
A9: BU SAP Grant # 55200002 | E9: 2 | F9: =IF(E17=0,"",E9/E17) -> 0.1 | H9: =IF(G17=0,"",G9/G17) -> 0 | J9: =IF(I17=0,"",I9/I17) -> 0 | K9: =SUM(E9, G9, I9) -> 2 | L9: =IF(K17=0,"",K9/K17) -> 0.03333333333
A10: BU SAP Grant # 55200003 | E10: 2 | F10: =IF(E17=0,"",E10/E17) -> 0.1 | H10: =IF(G17=0,"",G10/G17) -> 0 | J10: =IF(I17=0,"",I10/I17) -> 0 | K10: =SUM(E10, G10, I10) -> 2 | L10: =IF(K17=0,"",K10/K17) -> 0.03333333333
A11: BU SAP Grant # 55200004 | E11: 4 | F11: =IF(E17=0,"",E11/E17) -> 0.2 | H11: =IF(G17=0,"",G11/G17) -> 0 | J11: =IF(I17=0,"",I11/I17) -> 0 | K11: 4 | L11: =IF(K17=0,"",K11/K17) -> 0.06666666667
A12: VA Merit # 1111111 | F12: =IF(E17=0,"",E12/E17) -> 0 | H12: =IF(G17=0,"",G12/G17) -> 0 | I12: 5 | J12: =IF(I17=0,"",I12/I17) -> 0.625 | K12: 5 | L12: =IF(K17=0,"",K12/K17) -> 0.08333333333
A13: VA Merit # 1111112 | F13: =IF(E17=0,"",E13/E17) -> 0 | H13: =IF(G17=0,"",G13/G17) -> 0 | I13: 3 | J13: =IF(I17=0,"",I13/I17) -> 0.375 | K13: 3 | L13: =IF(K17=0,"",K13/K17) -> 0.05
A14: Teaching | E14: 6 | F14: =IF(E17=0,"",E14/E17) -> 0.3 | H14: =IF(G17=0,"",G14/G17) -> 0 | J14: =IF(I17=0,"",I14/I17) -> 0 | K14: 6 | L14: =IF(K17=0,"",K14/K17) -> 0.1
A15: Clinical, Administration | E15: 1 | F15: =IF(E17=0,"",E15/E17) -> 0.05 | G15: 32 | H15: =IF(G17=0,"",G15/G17) -> 1 | J15: =IF(I17=0,"",I15/I17) -> 0 | K15: 33 | L15: =IF(K17=0,"",K15/K17) -> 0.55
A16: Total Institutional Hours | E16: =SUM(E8:E15) -> 20 | F16: 1 | G16: 32 | H16: 1 | I16: 8 | J16: 1 | K16: 60 | L16: 1
A17: Total Appointed Time | E17: =SUM(E7:E15) -> 20 | F17: =IF($K$17=0, 0%, E17/$K$17) -> 0.3333333333 | G17: =SUM(G7:G15) -> 32 | H17: =IF($K$17=0, 0%, G17/$K$17) -> 0.5333333333 | I17: =SUM(I7:I15) -> 8 | J17: =IF($K$17=0, 0%, I17/$K$17) -> 0.1333333333 | K17: 60 | L17: =SUM(L7:L15) -> 1
A27: APPROVALS:
A55: All applicable Institutional Signatures must be completed before submission to BU Sponsored Programs
